bitfinex/quotes_SOLUSD_20240905
["timestamp","ask_amount","ask_price","bid_price","bid_amount"]
[1725557611277,7.6759,130.28,130.23,26.8747]
[1725557612279,8.76386454,130.29,130.24,7.6779]
[1725557612578,8.76076454,130.34,130.29,7.6749]
[1725557612784,7.6718,130.35,130.3,9.20894689]
[1725557613277,8.75946454,130.37,130.32,7.6734]
[1725557614079,1.08856454,130.37,130.31,19.1843]
[1725557614262,7.6723,130.34,130.31,19.1843]
[1725557614463,7.6723,130.34,130.3,7.6744]
[1725557615676,18.86607262,130.38,130.21,6.9812878]
[1725557615677,21.3906,130.36,130.21,6.9812878]
[1725557615865,19.19,130.28,130.21,0.8568878]
[1725557616066,21.08856454,130.27,130.21,0.8568878]
[1725557616271,7.6793,130.22,130.21,0.8568878]
[1725557616669,27.6793,130.22,130.21,0.8568878]
[1725557620074,27.6793,130.22,130.21,8.78e-05]
[1725557620387,72.6793,130.22,130.21,8.78e-05]
[1725557620888,72.6793,130.22,130.08,0.8568878]
[1725557620889,7.6859,130.11,130.08,0.8568878]
[1725557621098,7.6865,130.1,130.08,0.8568878]
[1725557621390,19.2121,130.13,130.08,0.8568878]
[1725557621596,19.2121,130.13,130.09,1.5368368]
[1725557621779,19.2121,130.13,130.08,0.8568878]
[1725557621966,7.6868,130.1,130.08,0.8568878]
[1725557622600,7.6869,130.09,130.08,0.8568878]
[1725557622972,1.08856454,130.18,130.08,52.39404625]
[1725557623173,20.0,130.18,130.11,6.0416]
[1725557623580,20.0,130.18,130.12,1.53646357]
[1725557624286,19.2032,130.19,130.12,57.6851]
[1725557624471,7.6826,130.17,130.14,15.8411]
[1725557624674,7.6826,130.17,130.15,1.53616884]
[1725557625400,39.48876454,130.21,130.11,442.2416]
[1725557625703,7.6835,130.15,130.11,442.2416]
[1725557626294,1.08856454,130.2,130.12,95.0]
[1725557626593,7.6817,130.18,130.13,7.6841]
[1725557626815,7.6817,130.18,130.14,45.0]
[1725557626976,20.0,130.24,130.14,45.0]
[1725557626977,1.08856454,130.24,130.16,21.6712]
[1725557627291,7.6803,130.21,130.17,46.53575806]
[1725557627494,7.6803,130.21,130.18,1.53579858]
[1725557627888,7.6794,130.22,130.18,1.53579858]
[1725557628196,7.6794,130.22,130.18,9.21739858]
[1725557628401,7.6787,130.23,130.19,52.681]
[1725557628573,7.6787,130.23,130.2,1.53564097]
[1725557628768,7.6787,130.23,130.21,1.53563981]
[1725557629279,7.6793,130.22,130.21,1.53563981]
[1725557629602,19.1903,130.28,130.21,1.53563981]
[1725557629796,7.6791,130.23,130.18,9.21702265]
[1725557630898,7.6799,130.21,130.17,26.8871]
[1725557631105,7.6799,130.21,130.18,45.0]
[1725557631284,7.6799,130.21,130.19,1.53589673]
[1725557631478,20.28136454,130.26,130.19,1.53589673]
[1725557631681,20.0,130.25,130.19,1.53589673]
[1725557631891,7.6794,130.22,130.19,1.53589673]
[1725557633379,20.0,130.25,130.19,9.21679673]
[1725557633999,20.0,130.25,130.19,1.53589673]
[1725557635077,7.6797,130.22,130.19,1.53589673]
[1725557635284,7.6799,130.21,130.19,1.53569818]
[1725557635810,7.6794,130.22,130.19,1.53569818]
[1725557636301,7.6799,130.21,130.17,26.8871]
[1725557636691,7.6799,130.21,130.18,45.0]
[1725557639523,7.6822,130.17,130.16,21.6712]
[1725557639813,59.47726454,130.25,130.16,21.6712]
[1725557639814,7.6817,130.18,130.16,21.6712]
[1725557640103,7.6822,130.17,130.16,21.6712]
[1725557640476,7.6822,130.17,130.12,19.2128]
[1725557640477,19.2014,130.2,130.12,21.6448]
[1725557640678,21.08856454,130.19,130.12,21.6448]
[1725557642000,20.0,130.19,130.15,7.6832]
[1725557642183,21.08856454,130.22,130.16,1.53614774]
[1725557642504,7.6806,130.2,130.16,9.21884774]
[1725557644391,7.6811,130.19,130.17,1.53592491]
[1725557644600,7.6817,130.18,130.15,19.2081]
[1725557645305,20.28606454,130.23,130.13,391.2]
[1725557645306,7.6829,130.16,130.13,391.2]
[1725557645498,7.6829,130.16,130.14,1.53642771]
[1725557646082,7.6829,130.16,130.13,391.2]
[1725557646890,7.6829,130.16,130.14,1.53648611]
[1725557648203,19.2003,130.21,130.15,1.53648459]
[1725557648204,7.6824,130.17,130.15,1.53648459]
[1725557648586,7.6824,130.17,130.13,398.8843]
[1725557649194,7.6824,130.17,130.14,1.53630404]
[1725557649484,7.6836,130.15,130.12,21.6448]
[1725557649981,7.6828,130.17,130.12,29.3296]
[1725557650378,7.6828,130.17,130.13,1.53640822]
[1725557650610,7.6828,130.16,130.13,1.53640822]
[1725557651107,7.6828,130.16,130.12,21.6448]
[1725557651485,7.6828,130.16,130.13,1.53648878]
[1725557651687,7.6824,130.17,130.13,1.53648878]
[1725557652097,19.2032,130.19,130.13,1.53648878]
[1725557652410,20.0,130.18,130.12,21.6448]
[1725557652618,7.6835,130.15,130.12,21.6448]
[1725557652789,7.683,130.16,130.12,29.33]
[1725557657712,1.08856454,130.24,130.15,50.0]
[1725557657884,1.08856454,130.24,130.16,46.53586453]
[1725557658094,7.6806,130.2,130.16,28.42516453]
[1725557658399,19.1997,130.22,130.13,460.4103]
[1725557658600,7.6823,130.17,130.14,45.0]
[1725557658907,7.6832,130.16,130.15,1.53637303]
[1725557659086,7.6832,130.16,130.13,1.53643096]
[1725557659505,7.6823,130.17,130.13,9.22083096]
[1725557661212,7.6818,130.18,130.14,7.684]
[1725557661420,7.6818,130.18,130.15,1.53614175]
[1725557661801,1.08856454,130.19,130.12,29.3295]
[1725557661989,21.08856454,130.22,130.13,45.0]
[1725557662822,21.08856454,130.22,130.14,1.53631523]
[1725557663118,21.08856454,130.22,130.13,45.0]
[1725557663419,7.6824,130.17,130.13,52.6845]
[1725557664619,7.6818,130.18,130.14,7.684]
[1725557664816,1.08856454,130.2,130.15,1.53629048]
[1725557665019,20.28956454,130.21,130.15,1.53629048]
[1725557665320,20.0,130.2,130.15,1.53629048]
[1725557665524,7.682,130.18,130.15,1.53629048]
[1725557665695,7.682,130.18,130.15,45.0]
[1725557666223,20.0,130.2,130.13,50.0]
[1725557666399,7.6826,130.17,130.14,45.0]
[1725557667501,20.0,130.2,130.14,52.6839]
[1725557667502,7.6818,130.18,130.14,52.6839]
[1725557669025,20.0,130.2,130.14,52.6839]
[1725557669026,7.6832,130.16,130.14,45.0]
[1725557669210,19.2027,130.19,130.13,45.0]
[1725557669415,20.0,130.18,130.13,45.0]
[1725557669702,7.682,130.18,130.14,9.22020155]
[1725557669908,21.08856454,130.2,130.14,7.6839]
[1725557670112,20.0,130.19,130.13,45.0]
[1725557670313,7.683,130.16,130.12,29.3298]
[1725557670719,7.682,130.18,130.13,9.22053015]
[1725557670918,7.6824,130.17,130.13,26.8956]
[1725557671124,1.08856454,130.2,130.13,26.8956]
[1725557671125,7.6828,130.16,130.13,26.8956]
[1725557671301,7.6828,130.16,130.12,66.6448]
[1725557671495,7.6828,130.16,130.12,74.3295]
[1725557671695,7.6824,130.17,130.13,7.6846]
[1725557672307,7.6817,130.18,130.14,52.6839]
[1725557672622,7.6817,130.18,130.15,1.53623584]
[1725557673211,7.6813,130.19,130.15,9.21953584]
[1725557673620,36.05956454,130.25,130.16,19.2065]
[1725557673926,7.6801,130.21,130.17,31.32530938]
[1725557674136,20.28346454,130.25,130.18,20.73962633]
[1725557674137,1.08856454,130.25,130.18,20.73962633]
[1725557674310,1.08856454,130.32,130.23,21.4954]
[1725557674628,1.08856454,130.32,130.25,7.6771]
[1725557674822,7.6741,130.31,130.26,54.21174445]
[1725557675000,7.6735,130.32,130.27,1.53477084]
[1725557675203,7.6729,130.33,130.28,16.637]
[1725557675426,3.6365604,130.38,130.32,6.369]
[1725557675615,1.08856454,130.39,130.34,7.6722]
[1725557675616,7.6694,130.39,130.34,7.6722]
[1725557675817,7.6694,130.39,130.35,1.53390854]
[1725557676327,7.6699,130.38,130.35,1.53390854]
[1725557676836,7.6699,130.38,130.34,1.5339659]
[1725557679338,20.26016454,130.41,130.34,1.5339659]
[1725557679629,20.26016454,130.41,130.33,1.53409218]
[1725557679827,7.6711,130.36,130.33,1.53409218]
[1725557680029,20.26016454,130.41,130.32,6.369]
[1725557680206,7.6724,130.34,130.32,6.369]
[1725557682039,7.6728,130.33,130.32,6.369]
[1725557683218,7.6734,130.32,130.3,1.53438527]
[1725557683425,7.6734,130.32,130.28,22.65]
[1725557683721,7.6734,130.32,130.29,1.53457972]
[1725557683918,7.6751,130.3,130.28,22.65]
[1725557684115,1.08856454,130.33,130.28,22.65]
[1725557684313,21.08856454,130.33,130.28,22.65]
[1725557684831,7.6741,130.31,130.28,22.65]
[1725557685337,7.6746,130.3,130.28,22.65]
[1725557685640,7.6741,130.31,130.28,22.65]
[1725557686328,21.08856454,130.33,130.28,22.65]
[1725557686329,7.6746,130.3,130.28,22.65]
[1725557687538,21.08856454,130.33,130.29,1.53489924]
[1725557687742,21.08856454,130.33,130.28,22.65]
[1725557689214,7.6744,130.31,130.28,22.65]
[1725557689419,7.6744,130.31,130.29,1.53480685]
[1725557690406,7.6744,130.31,130.28,22.65]
[1725557690849,7.6744,130.31,130.29,1.53477499]
[1725557691140,7.6735,130.32,130.29,1.53477499]
[1725557691339,7.6735,130.32,130.28,22.65]
[1725557691511,7.6735,130.32,130.29,1.53469263]
[1725557692537,20.0,130.33,130.3,1.5346876]
[1725557692718,21.08856454,130.36,130.3,1.5346876]
[1725557693039,7.6726,130.34,130.3,1.5346876]
[1725557693537,3.58089906,130.38,130.31,19.1847]
[1725557693835,7.6715,130.36,130.32,1.53426744]
[1725557694030,7.6715,130.36,130.33,1.53425511]
[1725557694642,7.6706,130.37,130.33,1.53425511]
[1725557695143,7.6706,130.37,130.33,9.20685511]
[1725557696928,7.6694,130.39,130.34,23.4859]
[1725557697262,7.6694,130.39,130.35,1.53383904]
[1725557697454,1.08856454,130.45,130.36,8.08323391]
[1725557697662,1.08856454,130.45,130.38,7.6694]
[1725557697663,7.6671,130.43,130.38,7.6694]
[1725557697944,7.6671,130.43,130.39,1.53341755]
[1725557698147,7.6671,130.43,130.4,1.53342005]
[1725557698524,7.6665,130.44,130.4,9.20202005]
[1725557698728,6.1792,130.51,130.41,15.6967]
[1725557698729,7.6658,130.45,130.41,15.6967]
[1725557698931,7.6653,130.46,130.42,1.53305168]
[1725557699230,1.08856454,130.48,130.43,1.53296927]
[1725557699438,7.6647,130.47,130.44,6.5912]
[1725557699630,7.6647,130.47,130.45,1.5329001]
[1725557700153,20.0,130.46,130.45,1.5329001]
[1725557700349,27.6654,130.46,130.41,34.8664]
[1725557700752,7.6654,130.46,130.41,34.8664]
[1725557700927,3.57117893,130.52,130.42,1.53302822]
[1725557701127,7.6635,130.49,130.44,26.832]
[1725557701328,7.664,130.48,130.45,1.53272755]
[1725557701827,38.3077,130.53,130.41,426.066]
[1725557702154,7.6647,130.47,130.42,7.6673]
[1725557702455,7.6652,130.46,130.42,7.6673]
[1725557703043,7.6658,130.45,130.41,42.534]
[1725557703247,7.6664,130.44,130.41,34.866]
[1725557703432,1.08856454,130.49,130.41,34.866]
[1725557703632,7.6659,130.45,130.41,34.866]
[1725557704246,7.6664,130.44,130.41,34.866]
[1725557704539,7.6664,130.44,130.41,36.3991999]
[1725557704951,1.08856454,130.48,130.41,44.0671999]
[1725557705662,1.08856454,130.48,130.41,42.534]
[1725557706351,1.08856454,130.48,130.41,34.866]
[1725557706540,23.51983098,130.49,130.41,15.6967]
[1725557706747,45.0,130.48,130.41,15.6967]
[1725557706949,19.1633,130.46,130.38,26.8429]
[1725557707142,20.58856454,130.45,130.38,26.8429]
[1725557707362,20.58856454,130.45,130.37,22.0625]
[1725557707666,7.6677,130.42,130.37,29.7324]
[1725557707841,7.6681,130.41,130.37,29.7324]
[1725557708557,7.6691,130.4,130.37,22.0625]
[1725557710145,7.6691,130.4,130.38,1.53380122]
[1725557710539,7.6682,130.41,130.38,1.53380122]
[1725557711563,19.1664,130.44,130.4,7.6682]
[1725557711564,8.25496454,130.44,130.4,7.6682]
[1725557711766,8.25496454,130.44,130.41,1.53331964]
[1725557711767,7.6664,130.44,130.41,1.53331964]
[1725557711939,7.6659,130.45,130.41,9.20141964]
[1725557712137,7.6659,130.45,130.41,7.6681]
[1725557712350,7.6659,130.45,130.39,69.1728]
[1725557712351,7.6663,130.44,130.4,7.6685]
[1725557713173,0.58856454,130.46,130.41,1.53330115]
[1725557713174,7.6673,130.43,130.41,1.53330115]
[1725557713349,7.6673,130.43,130.39,26.8419]
[1725557713743,7.6673,130.43,130.4,1.53343096]
[1725557714345,0.58856454,130.46,130.37,413.2625]
[1725557714346,19.1648,130.45,130.37,413.2625]
[1725557714662,7.6682,130.41,130.37,420.9326]
[1725557715353,7.6682,130.41,130.38,1.53360072]
[1725557715745,7.6682,130.41,130.37,420.9326]
[1725557716580,7.6682,130.41,130.38,1.53362689]
[1725557717045,7.6665,130.44,130.4,7.6686]
[1725557717248,7.6665,130.44,130.41,1.53326001]
[1725557717661,7.6665,130.44,130.4,7.6686]
[1725557718066,7.6665,130.44,130.41,1.53326895]
[1725557718744,0.58856454,130.47,130.41,1.53326895]
[1725557718948,7.6658,130.45,130.41,9.20096895]
[1725557719658,7.6658,130.45,130.41,7.6677]
[1725557720761,7.6663,130.44,130.41,7.6677]
[1725557721357,7.6663,130.44,130.42,1.53318476]
[1725557721544,7.6659,130.45,130.42,1.53318476]
[1725557723287,0.58856454,130.49,130.43,17.45333645]
[1725557723581,7.6632,130.5,130.46,7.665]
[1725557723780,7.6632,130.5,130.47,1.53261154]
[1725557724368,4.1968239,130.51,130.44,6.1719]
[1725557724369,7.6641,130.48,130.44,13.838]
[1725557725781,4.1968239,130.51,130.43,15.9202]
[1725557725981,7.6668,130.44,130.4,420.7408]
[1725557726277,45.58856454,130.5,130.4,420.7408]
[1725557726278,7.666,130.45,130.41,7.668]
[1725557726477,7.6667,130.44,130.4,29.5411]
[1725557728076,7.6672,130.43,130.4,21.8726]
[1725557730177,7.6678,130.42,130.4,21.8726]
[1725557730365,7.6678,130.42,130.36,57.5307]
[1725557730366,7.6676,130.42,130.39,1.53349843]
[1725557730566,7.6676,130.42,130.4,1.53342073]
[1725557730881,7.6676,130.42,130.37,22.0843]
[1725557731259,7.6676,130.42,130.38,7.6696]
[1725557732356,0.58856454,130.45,130.37,29.7545]
[1725557732357,7.6681,130.41,130.37,29.7545]
[1725557733276,7.6687,130.4,130.37,22.0843]
[1725557733664,7.6682,130.41,130.38,1.53363288]
[1725557736076,7.6687,130.4,130.37,22.0843]
[1725557736259,7.6693,130.39,130.37,22.0843]
[1725557736462,7.6698,130.38,130.37,22.0843]
[1725557736761,7.6698,130.38,130.34,29.6628]
[1725557737307,0.58856454,130.42,130.34,29.6628]
[1725557737308,7.6704,130.37,130.34,21.9911]
[1725557737465,7.6704,130.37,130.35,1.53396312]
[1725557740787,7.6699,130.38,130.36,1.53403231]
[1725557740958,7.6685,130.41,130.37,7.67]
[1725557741287,7.668,130.42,130.38,9.20305483]
[1725557741661,0.58856454,130.43,130.38,9.20305483]
[1725557741662,7.6681,130.41,130.38,9.20305483]
[1725557741961,7.6676,130.42,130.38,9.20305483]
[1725557742277,7.6676,130.42,130.38,7.6694]
[1725557742689,7.6676,130.42,130.39,1.53348802]
[1725557742986,7.6676,130.42,130.38,7.6694]
[1725557743773,7.6681,130.41,130.38,7.6694]
[1725557744363,7.6681,130.41,130.37,7.6702]
[1725557744971,7.6687,130.4,130.37,7.6702]
[1725557745983,7.6687,130.4,130.36,19.1774]
[1725557745984,7.6687,130.4,130.36,26.8482]
[1725557747067,7.6687,130.4,130.34,413.1911]
[1725557747068,20.58856454,130.39,130.34,413.1911]
[1725557747274,20.0,130.39,130.34,413.1911]
[1725557747886,7.6703,130.38,130.34,29.663]
[1725557748988,7.6707,130.37,130.34,21.9911]
[1725557750069,19.76026454,130.41,130.35,9.20553671]
[1725557750267,7.6697,130.39,130.36,1.53383981]
[1725557750487,20.0,130.38,130.36,1.53383981]
[1725557750859,27.6698,130.38,130.36,1.53383981]
[1725557751080,27.6698,130.38,130.35,7.6715]
[1725557752366,27.6698,130.38,130.34,29.6631]
[1725557757999,7.6723,130.34,130.31,41.6186]
[1725557758181,7.6724,130.34,130.31,22.4338]
[1725557758376,0.58856454,130.37,130.31,22.4338]
[1725557758377,7.6719,130.35,130.31,30.1077]
[1725557759390,7.6719,130.35,130.32,9.2076753]
[1725557759575,7.6719,130.35,130.33,1.53428327]
[1725557759973,7.6719,130.35,130.32,7.6733]
[1725557760498,7.6723,130.34,130.31,41.6183]
[1725557760686,7.6728,130.33,130.29,7.675]
[1725557760998,7.6734,130.32,130.28,42.3798]
[1725557762114,7.673,130.33,130.29,7.6751]
[1725557762604,7.673,130.33,130.3,1.53466108]
[1725557762899,7.6721,130.35,130.3,28.39516108]
[1725557763074,20.0,130.34,130.3,28.39516108]
[1725557763272,27.6724,130.34,130.3,28.39516108]
[1725557763612,27.6724,130.34,130.3,26.8605]
[1725557763800,7.6741,130.31,130.28,15.5162]
[1725557764004,7.6741,130.31,130.27,33.1479]
[1725557764192,7.673,130.33,130.29,19.1877]
[1725557764388,7.673,130.33,130.3,1.53460116]
[1725557764906,27.6723,130.34,130.3,9.20910116]
[1725557765199,27.6723,130.34,130.3,7.6745]
[1725557767329,7.6728,130.33,130.29,19.1877]
[1725557767491,8.26136454,130.33,130.29,26.8626]
[1725557768079,7.6728,130.33,130.29,26.8626]
[1725557769184,7.6735,130.32,130.29,19.1877]
[1725557769594,0.58856454,130.33,130.28,7.6755]
[1725557769788,7.6737,130.32,130.28,7.6755]
[1725557770007,7.6741,130.31,130.28,7.6755]
[1725557770194,7.6736,130.32,130.28,7.6755]
[1725557770905,7.6736,130.32,130.28,9.21038455]
[1725557772295,7.6736,130.32,130.28,28.39968455]
[1725557772604,7.6736,130.32,130.28,26.8648]
[1725557773895,7.6736,130.32,130.28,28.39960316]
[1725557775108,0.58856454,130.34,130.28,19.1893]
[1725557775291,7.6743,130.31,130.28,19.1893]
[1725557775909,64.76916454,130.34,130.29,9.20978421]
[1725557775910,7.6729,130.33,130.29,9.20978421]
[1725557776212,7.6729,130.33,130.3,1.53469486]
[1725557776213,20.0,130.32,130.3,1.53469486]
[1725557777105,7.6724,130.34,130.3,28.39519486]
[1725557777299,7.6724,130.34,130.31,1.53448853]
[1725557777500,20.0,130.33,130.3,26.8605]
[1725557777710,27.673,130.33,130.3,26.8605]
[1725557778017,20.0,130.33,130.3,26.8605]
[1725557779399,7.6723,130.34,130.3,26.8605]
[1725557780020,0.58856454,130.36,130.31,15.7913]
[1725557780317,7.67,130.38,130.34,7.6718]
[1725557780518,7.67,130.38,130.35,1.53412099]
[1725557780825,7.6695,130.39,130.35,1.53412099]
[1725557781025,0.58856454,130.4,130.36,1.53400948]
[1725557781317,7.6675,130.42,130.38,7.6694]
[1725557781516,0.58856454,130.44,130.39,1.53356449]
[1725557781697,57.4813,130.48,130.39,1.53356449]
[1725557781698,0.58856454,130.47,130.39,1.53356449]
[1725557781891,0.58856454,130.47,130.4,1.53346586]
[1725557782214,0.58856454,130.47,130.38,25.8048]
[1725557782425,0.58856454,130.47,130.39,1.53355818]
[1725557782426,7.6674,130.43,130.39,1.53355818]
[1725557782595,7.6674,130.43,130.39,9.20275818]
[1725557782797,7.6674,130.43,130.4,1.53349175]
[1725557783111,7.6676,130.42,130.38,33.4745]
[1725557783907,7.6676,130.42,130.38,27.33843694]
[1725557784504,0.58856454,130.41,130.37,16.2422]
[1725557784696,20.0,130.41,130.37,16.2422]
[1725557784895,20.0,130.41,130.37,25.44610434]
[1725557786805,20.0,130.41,130.37,23.9123]
[1725557788326,27.6682,130.41,130.37,23.9123]
[1725557790714,7.6687,130.4,130.37,23.9123]
[1725557790922,27.6683,130.41,130.38,1.53384233]
[1725557791310,27.6683,130.41,130.37,23.9123]
[1725557792337,0.58856454,130.4,130.35,7.61959239]
[1725557792508,0.58856454,130.4,130.36,1.53394622]
[1725557793321,0.58856454,130.4,130.35,13.7574]
[1725557793528,7.6694,130.39,130.35,13.7574]
[1725557793719,7.6694,130.39,130.36,1.53394775]
[1725557794602,7.6694,130.39,130.35,13.7574]
[1725557795231,7.6694,130.39,130.36,1.53397906]
[1725557796408,7.6689,130.4,130.36,28.38247906]
[1725557796609,27.6684,130.41,130.37,7.6704]
[1725557796930,20.0,130.41,130.39,7.6691]
[1725557797131,20.0,130.42,130.4,1.53361327]
[1725557797364,38.3203,130.48,130.42,7.6673]
[1725557797365,7.6655,130.46,130.42,7.6673]
[1725557797513,7.6655,130.46,130.43,1.53311817]
[1725557798016,7.6655,130.46,130.42,7.6673]
[1725557798429,7.6655,130.46,130.43,1.53315102]
[1725557798623,7.6647,130.47,130.43,1.53315102]
[1725557798820,7.6647,130.47,130.44,1.53315008]
[1725557799337,7.6647,130.47,130.43,7.6668]
[1725557799918,8.25376454,130.46,130.42,26.8357]
[1725557800123,7.6652,130.46,130.42,26.8357]
[1725557800315,7.6652,130.46,130.43,1.5331238]
[1725557800712,7.6652,130.46,130.42,26.8357]
[1725557801134,8.25246454,130.49,130.44,7.6658]
[1725557801332,27.664,130.48,130.45,1.5329128]
[1725557801854,7.6646,130.47,130.43,7.6668]
[1725557802226,7.6646,130.47,130.42,26.8357]
[1725557802737,8.25316454,130.47,130.42,26.8357]
[1725557802930,20.0,130.48,130.44,7.6662]
[1725557803139,7.6641,130.48,130.43,9.19988185]
[1725557803340,20.58856454,130.47,130.42,19.1683]
[1725557803541,4.17886894,130.5,130.42,19.1683]
[1725557803867,7.665,130.47,130.42,26.8357]
[1725557804149,7.665,130.47,130.43,1.53300243]
[1725557804454,0.58856454,130.5,130.45,23.3448]
[1725557804455,7.6629,130.5,130.45,23.3448]
[1725557804628,7.6629,130.5,130.46,1.53265598]
[1725557804827,7.6629,130.5,130.46,1.53270565]
[1725557805240,11.87422052,130.51,130.46,9.19730565]
[1725557805447,3.62295598,130.51,130.47,6.2328]
[1725557805747,1.44545234,130.54,130.48,1.53237318]
[1725557805955,7.6626,130.51,130.47,6.2328]
[1725557806323,7.6628,130.5,130.47,6.2328]
[1725557806533,7.6634,130.49,130.47,6.2328]
[1725557806733,7.6629,130.5,130.47,6.2328]
[1725557807234,7.6635,130.49,130.47,6.2328]
[1725557807537,7.664,130.48,130.47,6.2328]
[1725557808446,7.664,130.48,130.45,15.6791]
[1725557808623,7.6635,130.49,130.46,1.53275413]
[1725557809141,7.6635,130.49,130.45,15.6791]
[1725557809654,7.6635,130.49,130.46,1.53257006]
[1725557812050,0.58856454,130.52,130.46,1.53257006]
[1725557812252,20.58856454,130.52,130.46,1.53257006]
[1725557812459,7.6635,130.49,130.46,1.53257006]
[1725557813862,7.6641,130.48,130.46,1.53254799]
[1725557814452,42.77525559,130.54,130.46,1.53254799]
[1725557814453,4.47275559,130.54,130.47,7.6645]
[1725557814660,7.6617,130.52,130.48,9.19612233]
[1725557814959,7.6617,130.52,130.5,6.1336]
[1725557815137,8.5173878,130.54,130.51,17.73284442]
[1725557815350,0.8568878,130.54,130.52,1.5319439]
[1725557816060,0.8568878,130.54,130.52,51.5319439]
[1725557816260,0.8568878,130.54,130.53,45.0]
[1725557817865,0.8568878,130.54,130.52,1.5319439]
[1725557818044,0.8568878,130.54,130.52,45.0]
[1725557818363,0.8568878,130.54,130.51,16.2008]
[1725557818741,0.8568878,130.54,130.51,17.73293368]
[1725557819158,7.6616,130.52,130.51,16.2008]
[1725557819362,1.44545234,130.54,130.5,397.3336]
[1725557819547,7.6622,130.51,130.5,397.3336]
[1725557819747,1.44545234,130.54,130.48,15.4293]
[1725557819951,20.59755234,130.54,130.48,15.4293]
[1725557820157,20.0,130.53,130.48,15.4293]
[1725557820361,7.6634,130.49,130.48,16.96180013]
[1725557820748,7.6634,130.49,130.48,15.4293]
[1725557820944,7.6645,130.47,130.46,391.2]
[1725557821172,7.6645,130.47,130.45,15.2617]
[1725557821665,7.6651,130.46,130.45,15.2617]
[1725557822469,7.6663,130.44,130.43,6.5993]
[1725557822647,7.6669,130.43,130.42,15.5117]
[1725557823042,7.6664,130.44,130.42,15.5117]
[1725557823260,7.6647,130.47,130.43,1.53300528]
[1725557823470,7.6642,130.48,130.45,6.0285]
[1725557823674,7.6642,130.48,130.46,1.53254776]
[1725557824045,0.8568878,130.54,130.46,1.53254776]
[1725557824046,7.6635,130.49,130.46,1.53254776]
[1725557824249,0.8568878,130.54,130.48,65.079]
[1725557824560,0.8568878,130.54,130.49,46.53206567]
[1725557824876,7.6624,130.51,130.49,1.53206567]
[1725557825369,1.44545234,130.54,130.49,1.53206567]
[1725557825543,7.6628,130.5,130.49,1.53206567]
[1725557826370,7.6634,130.49,130.48,15.079]
[1725557826964,19.1562,130.51,130.47,391.2]
[1725557826965,7.664,130.48,130.47,391.2]
[1725557827172,7.664,130.48,130.45,6.0285]
[1725557827173,7.6651,130.46,130.45,6.0285]
[1725557827395,0.58856454,130.51,130.41,22.4151]
[1725557827552,7.6665,130.44,130.41,22.4151]
[1725557827752,7.6665,130.44,130.42,1.53303326]
[1725557828148,7.6665,130.44,130.41,22.4151]
[1725557828349,0.58856454,130.46,130.41,22.4151]
[1725557828558,7.6671,130.43,130.41,22.4151]
[1725557829071,20.58856454,130.46,130.41,22.4151]
[1725557829072,7.6664,130.44,130.41,22.4151]
[1725557829651,7.6671,130.43,130.41,22.4151]
[1725557830168,7.6675,130.42,130.41,22.4151]
[1725557830551,7.6692,130.39,130.38,21.5265]
[1725557830875,7.6688,130.4,130.38,21.5265]
[1725557832075,7.6692,130.39,130.38,21.5265]
[1725557832649,7.6688,130.4,130.38,21.5265]
[1725557832852,0.58856454,130.46,130.39,1.53355861]
[1725557833066,0.58856454,130.49,130.4,51.53320986]
[1725557833267,19.74796454,130.49,130.41,45.0]
[1725557833450,19.74796454,130.49,130.42,1.5328934]
[1725557833655,7.665,130.47,130.43,1.53289649]
[1725557833851,7.665,130.47,130.43,9.19969649]
[1725557834069,38.3133,130.51,130.44,22.8654]
[1725557834070,0.58856454,130.51,130.44,22.8654]
[1725557834370,7.6635,130.49,130.45,51.2536]
[1725557835276,7.6635,130.49,130.45,58.9193]
[1725557835478,7.6635,130.49,130.46,1.53261992]
[1725557836361,15.2522,130.53,130.47,50.0]